[Event "*** Titled Tuesday Blitz"]
[Site "Chess.com"]
[Date "2018.06.05"]
[Round "6"]
[White "ChessWarrior7197"]
[Black "AlexanderKing"]
[Result "1-0"]
[WhiteElo "2680"]
[BlackElo "2465"]
[TimeControl "180+2"]
[EndTime "14:28:30 PDT"]
[Termination "ChessWarrior7197 won by resignation"]

1. e4 {[%clk 0:03:01.9]} 1... e6 {[%clk 0:03:00.7]} 2. d4 {[%clk 0:03:02.7]}
2... d5 {[%clk 0:03:02]} 3. Nd2 {[%clk 0:03:04.3]} 3... c5 {[%clk 0:03:00.4]} 4.
Ngf3 {[%clk 0:03:03.3]} 4... Nc6 {[%clk 0:03:00.6]} 5. exd5 {[%clk 0:03:03]}
5... exd5 {[%clk 0:03:02.1]} 6. Be2 {[%clk 0:03:04.2]} 6... Nf6 {[%clk
0:03:02.7]} 7. O-O {[%clk 0:03:05.3]} 7... cxd4 {[%clk 0:03:00.4]} 8. Nb3 {[%clk
0:03:06.1]} 8... Bd6 {[%clk 0:02:57.4]} 9. Nbxd4 {[%clk 0:03:07.2]} 9... O-O
{[%clk 0:02:58.6]} 10. Bg5 {[%clk 0:03:07.6]} 10... Re8 {[%clk 0:02:59.6]} 11.
Bh4 {[%clk 0:03:05.8]} 11... a6 {[%clk 0:02:53.4]} 12. c3 {[%clk 0:03:03.5]}
12... Bg4 {[%clk 0:02:52]} 13. Re1 {[%clk 0:03:03.4]} 13... Bc7 {[%clk 0:02:50]}
14. Bg3 {[%clk 0:02:59.6]} 14... Bxg3 {[%clk 0:02:46.4]} 15. hxg3 {[%clk
0:03:01.5]} 15... Ne4 {[%clk 0:02:42.9]} 16. Qb3 {[%clk 0:02:53.4]} 16... Qd7
{[%clk 0:02:14.3]} 17. Rad1 {[%clk 0:02:50.7]} 17... Nc5 {[%clk 0:02:01.9]} 18.
Qc2 {[%clk 0:02:50.2]} 18... h6 {[%clk 0:01:55.6]} 19. Nb3 {[%clk 0:02:40.4]}
19... Nxb3 {[%clk 0:01:22.6]} 20. Qxb3 {[%clk 0:02:39.3]} 20... Rad8 {[%clk
0:01:23.3]} 21. Kf1 {[%clk 0:02:31]} 21... Bxf3 {[%clk 0:00:44.5]} 22. Bxf3
{[%clk 0:02:26]} 22... Rxe1+ {[%clk 0:00:46.4]} 23. Rxe1 {[%clk 0:02:22.7]}
23... d4 {[%clk 0:00:47.4]} 24. Bxc6 {[%clk 0:01:43.3]} 24... Qxc6 {[%clk
0:00:35.7]} 25. cxd4 {[%clk 0:01:37.1]} 25... Rxd4 {[%clk 0:00:37.6]} 26. Kg1
{[%clk 0:01:39]} 26... Qd5 {[%clk 0:00:13.6]} 27. Qc2 {[%clk 0:01:32.6]} 27...
Qd7 {[%clk 0:00:12.1]} 28. Re2 {[%clk 0:01:23.9]} 28... Rd1+ {[%clk 0:00:12]}
29. Kh2 {[%clk 0:01:25]} 29... Rd5 {[%clk 0:00:11.8]} 30. a3 {[%clk 0:01:17.9]}
30... h5 {[%clk 0:00:04.4]} 31. f3 {[%clk 0:01:14.8]} 31... Rd6 {[%clk
0:00:04.4]} 32. Qc5 {[%clk 0:01:12.1]} 32... h4 {[%clk 0:00:04.6]} 33. gxh4
{[%clk 0:01:10.3]} 33... Rh6 {[%clk 0:00:05.7]} 34. Re4 {[%clk 0:01:09]} 34...
Qd8 {[%clk 0:00:06.5]} 35. Qe7 {[%clk 0:01:01.5]} 35... Qxe7 {[%clk 0:00:05.1]}
36. Rxe7 {[%clk 0:01:03.4]} 36... Rxh4+ {[%clk 0:00:06.9]} 37. Kg3 {[%clk
0:01:04.8]} 37... Rh6 {[%clk 0:00:06.5]} 38. Rxb7 {[%clk 0:01:05.7]} 38... Rc6
{[%clk 0:00:08.1]} 39. a4 {[%clk 0:01:02.6]} 39... Rc2 {[%clk 0:00:06.2]} 40. a5
{[%clk 0:01:02.8]} 40... g6 {[%clk 0:00:06.1]} 41. b4 {[%clk 0:01:02.9]} 41...
Rb2 {[%clk 0:00:06]} 42. Rb6 {[%clk 0:01:03.7]} 42... Kg7 {[%clk 0:00:07]} 43.
Kf4 {[%clk 0:01:05]} 43... Rxg2 {[%clk 0:00:03.8]} 44. Rxa6 {[%clk 0:01:05.6]}
44... g5+ {[%clk 0:00:05.7]} 45. Ke3 {[%clk 0:01:06.1]} 45... Rg3 {[%clk
0:00:06.4]} 46. Kf2 {[%clk 0:01:05.6]} 46... Rh3 {[%clk 0:00:07.7]} 47. Rb6
{[%clk 0:01:07]} 47... f5 {[%clk 0:00:04]} 48. a6 {[%clk 0:01:08.1]} 48... Rh8
{[%clk 0:00:04.6]} 49. a7 {[%clk 0:01:08.7]} 49... Ra8 {[%clk 0:00:06.2]} 50.
Ra6 {[%clk 0:01:10.2]} 50... Kf7 {[%clk 0:00:06.5]} 51. b5 {[%clk 0:01:11.5]}
51... Ke7 {[%clk 0:00:08.4]} 52. b6 {[%clk 0:01:13]} 1-0

[Event "*** Titled Tuesday Blitz"]
[Site "Chess.com"]
[Date "2018.06.05"]
[Round "6"]
[White "chessking2151"]
[Black "Aryangholami"]
[Result "1-0"]
[WhiteElo "2442"]
[BlackElo "2532"]
[TimeControl "180+2"]
[EndTime "14:28:30 PDT"]
[Termination "chessking2151 won by resignation"]

1. d4 {[%clk 0:03:01]} 1... Nf6 {[%clk 0:02:57.3]} 2. Nf3 {[%clk 0:03:02.2]}
2... e6 {[%clk 0:02:57.3]} 3. Bf4 {[%clk 0:03:02.2]} 3... c5 {[%clk 0:02:58.2]}
4. e3 {[%clk 0:03:02.9]} 4... Qb6 {[%clk 0:02:59.1]} 5. Nc3 {[%clk 0:02:40.6]}
5... cxd4 {[%clk 0:02:58.7]} 6. exd4 {[%clk 0:02:26.3]} 6... Qxb2 {[%clk
0:02:57.2]} 7. Nb5 {[%clk 0:02:23.7]} 7... Nd5 {[%clk 0:02:57.8]} 8. Bd2 {[%clk
0:02:06.1]} 8... a5 {[%clk 0:02:42.1]} 9. Bc4 {[%clk 0:01:52]} 9... Nb4 {[%clk
0:02:22.7]} 10. Rb1 {[%clk 0:00:59.4]} 10... Qxc2 {[%clk 0:02:20.2]} 11. Bxb4
{[%clk 0:00:39.4]} 11... Bxb4+ {[%clk 0:02:15.9]} 12. Rxb4 {[%clk 0:00:40.1]}
12... Qxd1+ {[%clk 0:02:16.6]} 13. Kxd1 {[%clk 0:00:42]} 13... axb4 {[%clk
0:02:18.3]} 14. Nc7+ {[%clk 0:00:43.7]} 14... Ke7 {[%clk 0:02:19]} 15. Nxa8
{[%clk 0:00:45.6]} 15... d5 {[%clk 0:02:19.8]} 16. Bd3 {[%clk 0:00:40.9]} 16...
Bd7 {[%clk 0:02:18]} 17. Nb6 {[%clk 0:00:40.2]} 17... Bc6 {[%clk 0:02:19.2]} 18.
Ne5 {[%clk 0:00:35.7]} 18... Be8 {[%clk 0:02:15.1]} 19. Nc8+ {[%clk 0:00:33.4]}
19... Kf8 {[%clk 0:02:13.2]} 20. Nd6 {[%clk 0:00:34.3]} 20... f6 {[%clk
0:02:09.6]} 21. Nf3 {[%clk 0:00:34.4]} 21... Bc6 {[%clk 0:02:08.3]} 22. Re1
{[%clk 0:00:33.3]} 22... Ke7 {[%clk 0:02:07.7]} 23. Nf5+ {[%clk 0:00:32.3]}
23... Kf7 {[%clk 0:02:09.3]} 24. Ne3 {[%clk 0:00:25.5]} 24... Nd7 {[%clk
0:02:10.2]} 25. Nc2 {[%clk 0:00:23.7]} 25... Ba4 {[%clk 0:02:07.1]} 26. Kd2
{[%clk 0:00:24]} 26... Bxc2 {[%clk 0:02:03.3]} 27. Bxc2 {[%clk 0:00:25.9]} 27...
Nb6 {[%clk 0:01:58.5]} 28. Bb3 {[%clk 0:00:26]} 28... Nc4+ {[%clk 0:01:58.4]}
29. Bxc4 {[%clk 0:00:20.7]} 29... dxc4 {[%clk 0:01:59.7]} 30. Rb1 {[%clk
0:00:22.1]} 30... Ra8 {[%clk 0:01:59.8]} 31. Rxb4 {[%clk 0:00:22.7]} 31... Rxa2+
{[%clk 0:02:00.3]} 32. Ke3 {[%clk 0:00:24.3]} 32... Ra3+ {[%clk 0:02:00.8]} 33.
Kf4 {[%clk 0:00:22.4]} 33... Ra2 {[%clk 0:02:00.8]} 34. Kg3 {[%clk 0:00:22.8]}
34... c3 {[%clk 0:01:59.3]} 35. Rxb7+ {[%clk 0:00:23.8]} 35... Kg6 {[%clk
0:02:00.6]} 36. Rc7 {[%clk 0:00:23.7]} 36... Ra3 {[%clk 0:01:58.4]} 37. h4
{[%clk 0:00:24.2]} 37... Kf5 {[%clk 0:01:59.1]} 38. Ne1 {[%clk 0:00:17.8]} 38...
Ke4 {[%clk 0:01:57]} 39. f3+ {[%clk 0:00:19.1]} 39... Kd5 {[%clk 0:01:55.4]} 40.
Nc2 {[%clk 0:00:20.4]} 40... Rb3 {[%clk 0:01:55]} 41. Rc5+ {[%clk 0:00:21.1]}
41... Kd6 {[%clk 0:01:55.1]} 42. Ne3 {[%clk 0:00:21.8]} 42... h6 {[%clk
0:01:50.7]} 43. h5 {[%clk 0:00:21.2]} 43... e5 {[%clk 0:01:49.3]} 44. Nf5+
{[%clk 0:00:19.6]} 44... Ke6 {[%clk 0:01:46.7]} 45. Nxg7+ {[%clk 0:00:20.6]}
45... Kd6 {[%clk 0:01:48]} 46. Nf5+ {[%clk 0:00:21]} 46... Ke6 {[%clk
0:01:49.4]} 47. Kg4 {[%clk 0:00:17.3]} 47... Rb4 {[%clk 0:01:40.6]} 48. Rxc3
{[%clk 0:00:15.3]} 48... exd4 {[%clk 0:01:41.9]} 49. Rd3 {[%clk 0:00:16.8]}
49... Ke5 {[%clk 0:01:43.2]} 50. Rxd4 {[%clk 0:00:12.4]} 50... Rb2 {[%clk
0:01:41.8]} 51. Re4+ {[%clk 0:00:12.6]} 51... Kd5 {[%clk 0:01:42.8]} 52. Ne3+
{[%clk 0:00:13.9]} 52... Kc6 {[%clk 0:01:44]} 53. Kf5 {[%clk 0:00:15.1]} 53...
Rb5+ {[%clk 0:01:44.6]} 54. Kg6 {[%clk 0:00:16.4]} 54... Rg5+ {[%clk 0:01:44.3]}
55. Kxh6 {[%clk 0:00:17.8]} 55... Kd6 {[%clk 0:01:45.7]} 56. g4 {[%clk
0:00:18.9]} 56... Ra5 {[%clk 0:01:45.5]} 57. Nf5+ {[%clk 0:00:20]} 57... Kd7
{[%clk 0:01:45.9]} 58. Kg6 {[%clk 0:00:21.1]} 58... Ra8 {[%clk 0:01:41.9]} 59.
h6 {[%clk 0:00:22.4]} 1-0

[Event "*** Titled Tuesday Blitz"]
[Site "Chess.com"]
[Date "2018.06.05"]
[Round "6"]
[White "VNeimer"]
[Black "Hrant_ChessMood"]
[Result "0-1"]
[WhiteElo "2478"]
[BlackElo "2916"]
[TimeControl "180+2"]
[EndTime "14:28:37 PDT"]
[Termination "Hrant_ChessMood won by resignation"]

1. d4 {[%clk 0:03:01.9]} 1... Nf6 {[%clk 0:03:00.2]} 2. Nf3 {[%clk 0:03:02.3]}
2... g6 {[%clk 0:03:00]} 3. g3 {[%clk 0:03:02.4]} 3... Bg7 {[%clk 0:03:00.7]} 4.
Bg2 {[%clk 0:03:03.2]} 4... O-O {[%clk 0:03:01.9]} 5. O-O {[%clk 0:03:04.2]}
5... d6 {[%clk 0:03:03]} 6. c4 {[%clk 0:03:04.4]} 6... Nc6 {[%clk 0:03:03.4]} 7.
Nc3 {[%clk 0:03:05]} 7... Bf5 {[%clk 0:03:04.3]} 8. b3 {[%clk 0:02:30.5]} 8...
Ne4 {[%clk 0:03:02.9]} 9. Nd5 {[%clk 0:02:26.8]} 9... e6 {[%clk 0:03:00.5]} 10.
Ne3 {[%clk 0:02:25.4]} 10... Nc3 {[%clk 0:02:59.5]} 11. Qd2 {[%clk 0:02:26.5]}
11... Nxd4 {[%clk 0:03:00.5]} 12. Nxd4 {[%clk 0:02:24.8]} 12... Bxd4 {[%clk
0:03:02.4]} 13. g4 {[%clk 0:02:15.8]} 13... Bxg4 {[%clk 0:02:18.3]} 14. Nxg4
{[%clk 0:02:12.8]} 14... Nxe2+ {[%clk 0:02:18.2]} 15. Qxe2 {[%clk 0:02:11.9]}
15... Bxa1 {[%clk 0:02:20.1]} 16. Bb2 {[%clk 0:01:35.6]} 16... Bxb2 {[%clk
0:02:18.2]} 17. Qxb2 {[%clk 0:01:37.5]} 17... e5 {[%clk 0:02:04.8]} 18. f4
{[%clk 0:01:00.8]} 18... Qh4 {[%clk 0:02:01.2]} 19. h3 {[%clk 0:00:55.9]} 19...
h5 {[%clk 0:01:54.6]} 20. Ne3 {[%clk 0:00:51]} 20... c6 {[%clk 0:01:43.3]} 21.
fxe5 {[%clk 0:00:41.1]} 21... Rae8 {[%clk 0:01:41.2]} 22. Qf2 {[%clk 0:00:35.3]}
22... Qxf2+ {[%clk 0:01:36.9]} 23. Kxf2 {[%clk 0:00:37.2]} 23... dxe5 {[%clk
0:01:35.8]} 24. c5 {[%clk 0:00:32.8]} 24... e4 {[%clk 0:01:30.8]} 25. Nc4 {[%clk
0:00:33.3]} 25... f5 {[%clk 0:01:31.9]} 26. Nd6 {[%clk 0:00:33.9]} 26... Re7
{[%clk 0:01:33.1]} 27. Ke3 {[%clk 0:00:34.9]} 27... Kg7 {[%clk 0:01:32.4]} 28.
h4 {[%clk 0:00:35.7]} 28... Kf6 {[%clk 0:01:31.6]} 29. Kf4 {[%clk 0:00:35.1]}
29... e3 {[%clk 0:01:26.8]} 30. Re1 {[%clk 0:00:35.1]} 30... b6 {[%clk 0:01:22]}
31. b4 {[%clk 0:00:32.6]} 31... bxc5 {[%clk 0:01:21.7]} 32. bxc5 {[%clk
0:00:34.5]} 32... Rb8 {[%clk 0:01:23]} 33. Bxc6 {[%clk 0:00:32.7]} 33... Rb4+
{[%clk 0:01:23.4]} 34. Kf3 {[%clk 0:00:34]} 34... Rxh4 {[%clk 0:01:22]} 35. Ne8+
{[%clk 0:00:33.4]} 35... Kf7 {[%clk 0:01:20.9]} 36. Nd6+ {[%clk 0:00:34.2]}
36... Kf6 {[%clk 0:01:19.2]} 37. Ne8+ {[%clk 0:00:35.4]} 37... Kg5 {[%clk
0:01:20.5]} 38. Nd6 {[%clk 0:00:30.7]} 38... Rf4+ {[%clk 0:01:20.8]} 39. Kg2
{[%clk 0:00:30.8]} 39... h4 {[%clk 0:01:19.3]} 40. Bf3 {[%clk 0:00:29.3]} 40...
h3+ {[%clk 0:01:09]} 41. Kg3 {[%clk 0:00:30.5]} 41... h2 {[%clk 0:01:10.5]} 42.
c6 {[%clk 0:00:28.3]} 42... e2 {[%clk 0:01:07.8]} 43. Bg2 {[%clk 0:00:20.6]}
43... Rh7 {[%clk 0:00:48]} 44. Rxe2 {[%clk 0:00:17.8]} 44... Rg4+ {[%clk
0:00:46.1]} 45. Kf3 {[%clk 0:00:17.9]} 45... Rh3+ {[%clk 0:00:44.5]} 46. Bxh3
{[%clk 0:00:16.7]} 46... h1=Q+ {[%clk 0:00:45.7]} 47. Bg2 {[%clk 0:00:17.8]}
47... Rf4+ {[%clk 0:00:42.7]} 48. Ke3 {[%clk 0:00:17.9]} 48... Qc1+ {[%clk
0:00:43.4]} 49. Rd2 {[%clk 0:00:16.7]} 49... Qc5+ {[%clk 0:00:41.1]} 50. Ke2
{[%clk 0:00:16.1]} 50... Rf2+ {[%clk 0:00:41.9]} 51. Kd1 {[%clk 0:00:16.8]}
51... Rxd2+ {[%clk 0:00:42.7]} 0-1

[Event "*** Titled Tuesday Blitz"]
[Site "Chess.com"]
[Date "2018.06.05"]
[Round "6"]
[White "Fandorine"]
[Black "Shant_Sargsyan"]
[Result "1-0"]
[WhiteElo "2735"]
[BlackElo "2891"]
[TimeControl "180+2"]
[EndTime "14:28:45 PDT"]
[Termination "Fandorine won on time"]

1. Nf3 {[%clk 0:02:59.7]} 1... d5 {[%clk 0:03:00.4]} 2. g3 {[%clk 0:03:00.8]}
2... g6 {[%clk 0:03:01.9]} 3. Bg2 {[%clk 0:03:01.7]} 3... Bg7 {[%clk 0:03:03.4]}
4. d4 {[%clk 0:02:58.8]} 4... Nf6 {[%clk 0:03:04.2]} 5. O-O {[%clk 0:03:00.3]}
5... O-O {[%clk 0:03:05.1]} 6. c3 {[%clk 0:03:01.6]} 6... c6 {[%clk 0:03:05.1]}
7. Nbd2 {[%clk 0:03:00.8]} 7... Bf5 {[%clk 0:03:05.8]} 8. Re1 {[%clk 0:03:01.4]}
8... Nbd7 {[%clk 0:03:01.5]} 9. Nh4 {[%clk 0:03:02.2]} 9... Be6 {[%clk
0:03:02.6]} 10. e4 {[%clk 0:03:02.7]} 10... dxe4 {[%clk 0:03:03.7]} 11. Nxe4
{[%clk 0:03:02.2]} 11... Nxe4 {[%clk 0:03:05.3]} 12. Bxe4 {[%clk 0:03:02.6]}
12... Nf6 {[%clk 0:03:06.8]} 13. Bg2 {[%clk 0:03:03.3]} 13... Bd5 {[%clk
0:03:08.3]} 14. Bg5 {[%clk 0:02:54.5]} 14... Bxg2 {[%clk 0:03:01.3]} 15. Nxg2
{[%clk 0:02:55.4]} 15... Re8 {[%clk 0:02:57.9]} 16. Qb3 {[%clk 0:02:55.6]} 16...
Qd7 {[%clk 0:02:58.6]} 17. Re2 {[%clk 0:02:56.2]} 17... e6 {[%clk 0:02:57.9]}
18. Rae1 {[%clk 0:02:48.7]} 18... Nd5 {[%clk 0:02:58.2]} 19. h4 {[%clk
0:02:46.5]} 19... a5 {[%clk 0:02:49.6]} 20. a4 {[%clk 0:02:42.2]} 20... b5
{[%clk 0:02:50.3]} 21. h5 {[%clk 0:02:23.6]} 21... Rab8 {[%clk 0:02:47.7]} 22.
Nf4 {[%clk 0:02:03.7]} 22... h6 {[%clk 0:02:25.6]} 23. Nxd5 {[%clk 0:02:04.7]}
23... hxg5 {[%clk 0:01:44.1]} 24. Ne3 {[%clk 0:02:05.7]} 24... gxh5 {[%clk
0:01:43.2]} 25. Qd1 {[%clk 0:02:04.8]} 25... bxa4 {[%clk 0:01:04.5]} 26. Qxa4
{[%clk 0:01:52.1]} 26... Rb5 {[%clk 0:01:03.6]} 27. Qd1 {[%clk 0:01:12.3]} 27...
h4 {[%clk 0:01:01.3]} 28. gxh4 {[%clk 0:00:51.5]} 28... gxh4 {[%clk 0:00:58.8]}
29. f4 {[%clk 0:00:52.9]} 29... c5 {[%clk 0:00:45.8]} 30. d5 {[%clk 0:00:15]}
30... c4 {[%clk 0:00:22.5]} 31. Rg2 {[%clk 0:00:13.9]} 31... f5 {[%clk
0:00:16.2]} 32. dxe6 {[%clk 0:00:07.6]} 32... Qxd1 {[%clk 0:00:13.9]} 33. Rxd1
{[%clk 0:00:07.5]} 33... Rb7 {[%clk 0:00:06.6]} 34. Rd6 {[%clk 0:00:05.9]} 34...
Kh7 {[%clk 0:00:06.8]} 35. Nxf5 {[%clk 0:00:06.9]} 35... Bf8 {[%clk 0:00:07.7]}
36. Rc6 {[%clk 0:00:07.9]} 36... a4 {[%clk 0:00:07.8]} 37. Rg4 {[%clk
0:00:07.4]} 37... a3 {[%clk 0:00:07.6]} 38. bxa3 {[%clk 0:00:08.4]} 38... Bxa3
{[%clk 0:00:07.1]} 39. e7 {[%clk 0:00:08.7]} 39... Rb1+ {[%clk 0:00:03.3]} 40.
Kh2 {[%clk 0:00:09.8]} 1-0

[Event "*** Titled Tuesday Blitz"]
[Site "Chess.com"]
[Date "2018.06.05"]
[Round "6"]
[White "GadimbayliA"]
[Black "Beca95"]
[Result "1-0"]
[WhiteElo "2516"]
[BlackElo "2770"]
[TimeControl "180+2"]
[EndTime "14:28:48 PDT"]
[Termination "GadimbayliA won by resignation"]

1. e4 {[%clk 0:03:01.9]} 1... c6 {[%clk 0:03:01.2]} 2. Nf3 {[%clk 0:03:01.9]}
2... d5 {[%clk 0:03:03.1]} 3. exd5 {[%clk 0:03:03.8]} 3... cxd5 {[%clk
0:03:04.2]} 4. Ne5 {[%clk 0:03:05.3]} 4... e6 {[%clk 0:03:03.2]} 5. d4 {[%clk
0:03:05.5]} 5... Nc6 {[%clk 0:03:03.6]} 6. Bb5 {[%clk 0:03:04.5]} 6... Bd7
{[%clk 0:03:04.7]} 7. Nxd7 {[%clk 0:03:04.5]} 7... Qxd7 {[%clk 0:03:06.6]} 8.
O-O {[%clk 0:03:05.8]} 8... Bd6 {[%clk 0:03:08]} 9. Nd2 {[%clk 0:03:03]} 9... a6
{[%clk 0:03:07.8]} 10. Bxc6 {[%clk 0:02:59.5]} 10... Qxc6 {[%clk 0:03:08.9]} 11.
Nf3 {[%clk 0:03:01.4]} 11... Ne7 {[%clk 0:03:09.9]} 12. c3 {[%clk 0:02:56.7]}
12... b5 {[%clk 0:03:10]} 13. a4 {[%clk 0:02:48]} 13... O-O {[%clk 0:03:09.8]}
14. Bg5 {[%clk 0:02:44.2]} 14... Nf5 {[%clk 0:02:42.3]} 15. Re1 {[%clk
0:02:30.3]} 15... h6 {[%clk 0:02:34.2]} 16. Bd2 {[%clk 0:02:24.5]} 16... a5
{[%clk 0:02:35.3]} 17. Ne5 {[%clk 0:02:15.9]} 17... Bxe5 {[%clk 0:02:35.4]} 18.
Rxe5 {[%clk 0:02:13.9]} 18... bxa4 {[%clk 0:02:34.9]} 19. Rxa4 {[%clk
0:02:06.8]} 19... Rfb8 {[%clk 0:02:34]} 20. Bc1 {[%clk 0:02:00.5]} 20... Ra7
{[%clk 0:02:21.4]} 21. Re2 {[%clk 0:01:50.2]} 21... Nd6 {[%clk 0:02:16.2]} 22.
Bf4 {[%clk 0:01:48.5]} 22... Rb5 {[%clk 0:02:14.4]} 23. b4 {[%clk 0:01:34.9]}
23... Nc4 {[%clk 0:02:12.9]} 24. Rea2 {[%clk 0:01:28.6]} 24... Ra6 {[%clk
0:02:08.8]} 25. Qd3 {[%clk 0:01:19.7]} 25... Rbb6 {[%clk 0:02:05.1]} 26. bxa5
{[%clk 0:01:14]} 26... Rb5 {[%clk 0:02:01.6]} 27. Rb4 {[%clk 0:01:09.8]} 27...
g5 {[%clk 0:01:53.5]} 28. Be5 {[%clk 0:01:05.6]} 28... Ra8 {[%clk 0:01:18.3]}
29. Qb1 {[%clk 0:00:47.3]} 29... Rxb4 {[%clk 0:01:15.3]} 30. Qxb4 {[%clk
0:00:48.3]} 30... Nxe5 {[%clk 0:01:10.8]} 31. dxe5 {[%clk 0:00:47.2]} 31... Qc7
{[%clk 0:01:08.4]} 32. g3 {[%clk 0:00:40.7]} 32... Rb8 {[%clk 0:00:49.9]} 33.
Qd4 {[%clk 0:00:39.1]} 33... Rb1+ {[%clk 0:00:44.3]} 34. Kg2 {[%clk 0:00:38.7]}
34... Qb7 {[%clk 0:00:37.7]} 35. a6 {[%clk 0:00:35.4]} 35... Qb5 {[%clk
0:00:38.6]} 36. c4 {[%clk 0:00:25.5]} 36... dxc4 {[%clk 0:00:33.1]} 37. a7
{[%clk 0:00:21]} 37... c3 {[%clk 0:00:20.5]} 38. a8=Q+ {[%clk 0:00:19.3]} 38...
Kg7 {[%clk 0:00:21.9]} 39. Qad8 {[%clk 0:00:14.3]} 39... Qf1+ {[%clk 0:00:21.5]}
40. Kf3 {[%clk 0:00:15.5]} 40... Qh1+ {[%clk 0:00:21.4]} 41. Kg4 {[%clk
0:00:16.3]} 41... h5+ {[%clk 0:00:20.7]} 42. Kxg5 {[%clk 0:00:15.7]} 42... Rb5
{[%clk 0:00:10.3]} 43. Qf6+ {[%clk 0:00:15.9]} 43... Kg8 {[%clk 0:00:11.8]} 44.
Qdd8+ {[%clk 0:00:15.5]} 1-0

[Event "*** Titled Tuesday Blitz"]
[Site "Chess.com"]
[Date "2018.06.05"]
[Round "6"]
[White "murmah2003"]
[Black "Angulo07"]
[Result "1/2-1/2"]
[WhiteElo "2488"]
[BlackElo "2423"]
[TimeControl "180+2"]
[EndTime "14:28:54 PDT"]
[Termination "Game drawn by agreement"]

1. Nf3 {[%clk 0:03:01.9]} 1... d5 {[%clk 0:03:01.9]} 2. c4 {[%clk 0:02:58]} 2...
Nf6 {[%clk 0:03:00.6]} 3. cxd5 {[%clk 0:02:55]} 3... Nxd5 {[%clk 0:03:02.5]} 4.
Nc3 {[%clk 0:02:55.7]} 4... e6 {[%clk 0:02:59.9]} 5. d4 {[%clk 0:02:51.1]} 5...
c5 {[%clk 0:02:57.1]} 6. e4 {[%clk 0:02:46.9]} 6... Nxc3 {[%clk 0:02:58.2]} 7.
bxc3 {[%clk 0:02:47.6]} 7... cxd4 {[%clk 0:02:56.8]} 8. cxd4 {[%clk 0:02:49.5]}
8... Nc6 {[%clk 0:02:55.7]} 9. Bc4 {[%clk 0:02:37.6]} 9... Bb4+ {[%clk
0:02:51.9]} 10. Bd2 {[%clk 0:02:37.6]} 10... Bxd2+ {[%clk 0:02:51.2]} 11. Qxd2
{[%clk 0:02:39.3]} 11... O-O {[%clk 0:02:49.2]} 12. O-O {[%clk 0:02:38.6]} 12...
Qf6 {[%clk 0:02:48.7]} 13. Rac1 {[%clk 0:02:23.6]} 13... Rd8 {[%clk 0:02:46.7]}
14. Rfd1 {[%clk 0:02:14.7]} 14... Nxd4 {[%clk 0:02:27]} 15. Nxd4 {[%clk
0:01:57.7]} 15... e5 {[%clk 0:02:28.1]} 16. Bd5 {[%clk 0:01:50.4]} 16... exd4
{[%clk 0:02:28.9]} 17. Rc4 {[%clk 0:01:45.6]} 17... Be6 {[%clk 0:02:23]} 18.
Rxd4 {[%clk 0:01:44.9]} 18... Bxd5 {[%clk 0:02:20.3]} 19. Rxd5 {[%clk
0:01:42.7]} 19... Rxd5 {[%clk 0:02:18.1]} 20. Qxd5 {[%clk 0:01:36.8]} 20... Qe7
{[%clk 0:02:08.2]} 21. g3 {[%clk 0:01:31.8]} 21... g6 {[%clk 0:02:06]} 22. Rb1
{[%clk 0:01:16.8]} 22... Rb8 {[%clk 0:02:04.2]} 23. e5 {[%clk 0:01:04.7]} 23...
b6 {[%clk 0:02:03.6]} 24. Rc1 {[%clk 0:01:04.5]} 24... Re8 {[%clk 0:02:01.4]}
25. f4 {[%clk 0:00:59.5]} 25... Rd8 {[%clk 0:02:02.9]} 26. Qe4 {[%clk
0:00:56.1]} 26... Qa3 {[%clk 0:01:58.6]} 27. Rc2 {[%clk 0:00:53.3]} 27... b5
{[%clk 0:01:36.1]} 28. Kg2 {[%clk 0:00:37]} 28... Qd3 {[%clk 0:01:30.2]} 29. Qc6
{[%clk 0:00:22.6]} 29... Rd7 {[%clk 0:01:21.5]} 30. e6 {[%clk 0:00:18.6]} 30...
Re7 {[%clk 0:01:13.6]} 31. exf7+ {[%clk 0:00:12.9]} 31... Kxf7 {[%clk
0:01:15.2]} 32. Qc5 {[%clk 0:00:07.9]} 32... a6 {[%clk 0:01:13.2]} 33. Rf2
{[%clk 0:00:07.6]} 33... Qe4+ {[%clk 0:01:10.7]} 34. Kg1 {[%clk 0:00:08.1]}
34... h5 {[%clk 0:01:05.3]} 35. f5 {[%clk 0:00:08.2]} 35... Rd7 {[%clk
0:00:58.3]} 36. fxg6+ {[%clk 0:00:08.4]} 36... Kxg6 {[%clk 0:00:59.2]} 37. Qb6+
{[%clk 0:00:07]} 37... Kh7 {[%clk 0:00:57]} 38. Rf1 {[%clk 0:00:08.3]} 38... h4
{[%clk 0:00:54.5]} 39. Qf6 {[%clk 0:00:07.8]} 39... hxg3 {[%clk 0:00:46.1]} 40.
hxg3 {[%clk 0:00:08.5]} 40... Qd4+ {[%clk 0:00:44.2]} 41. Qxd4 {[%clk
0:00:09.1]} 41... Rxd4 {[%clk 0:00:46.1]} 42. Rf7+ {[%clk 0:00:09.8]} 42... Kg6
{[%clk 0:00:39.4]} 43. Rf2 {[%clk 0:00:11.7]} 43... Rd3 {[%clk 0:00:38.8]} 44.
Kg2 {[%clk 0:00:12.6]} 44... b4 {[%clk 0:00:38.8]} 45. Kh3 {[%clk 0:00:12.9]}
45... a5 {[%clk 0:00:37.9]} 46. Rc2 {[%clk 0:00:13.2]} 46... a4 {[%clk
0:00:37.7]} 47. Rc4 {[%clk 0:00:12.7]} 47... b3 {[%clk 0:00:35.7]} 48. axb3
{[%clk 0:00:13.3]} 48... axb3 {[%clk 0:00:36.5]} 49. Rb4 {[%clk 0:00:12.7]}
49... Kg5 {[%clk 0:00:37.1]} 50. Rb5+ {[%clk 0:00:13.3]} 50... Kg6 {[%clk
0:00:38.4]} 51. Kh4 {[%clk 0:00:13.7]} 1/2-1/2